Cogmind - Beta 10.2 @@@ ROGUE MODE // 2020.11.26 @ 18:32:01 Player: Perseus Result: Destroyed by Enhanced Grunt with Neutron Cannon Performance ------------- Evolutions (3) 1500 Regions Visited (9) 1800 Robots Destroyed (99) 495 Value Destroyed (3258) 3258 Prototype IDs (226) 4520 Alien Tech Used (0) 0 Bonus (3647) 3647 TOTAL SCORE: 15220 Bonus ------- High Alert Combat Kills 347 Met Data Miner 300 Used Data Conduit 3000 Cogmind --------- Core Integrity 0/700 Matter 213/300 Energy 735/750 System Corruption 0% Temperature Cool (9) Movement Walking (120) Location -7/Data Miner Parts ------- > --- POWER (1) -------- Light Angular Momentum Engine > --- PROPULSION (3) --- Carbon-fiber Leg Enhanced Flexi-carbon Leg Enhanced Flexi-carbon Leg > --- UTILITY (6) ------ Advanced Heat Sink Large Storage Unit Improved Energy Well Long-range Sensor Array Advanced Terrain Scan Processor Layered Medium Armor Plating > --- WEAPON (3) ------- (None) > --- INVENTORY (10) --- Antimatter Reactor Improved Heat Sink Improved Heat Sink Advanced Heat Sink Advanced Heat Sink Improved Terrain Scanner System Backup Module Peak State ------------ > --- POWER ------------ Light Angular Momentum Engine > --- PROPULSION ------- Carbon-fiber Leg Carbon-fiber Leg Enhanced Flexi-carbon Leg > --- UTILITY ---------- Improved Heat Sink Advanced Heat Sink Large Storage Unit Improved Energy Well Advanced Terrain Scan Processor Advanced Particle Charger > --- WEAPON ----------- EM Pulse Cannon Plasma Cannon Gauss Rifle > --- INVENTORY -------- Light Angular Momentum Engine Antimatter Reactor Enhanced Flexi-carbon Leg Improved Heat Sink Advanced Heat Sink Long-range Sensor Array Improved Terrain Scanner System Backup Module Barrage Gun Flak Gun [Rating: 60] Favorites ----------- Power Light Angular Momentum Engine Engine Light Angular Momentum Engine Propulsion Carbon-fiber Leg Leg Carbon-fiber Leg Utility Large Storage Unit Device Improved Terrain Scanner Storage Large Storage Unit Processor Improved Signal Interpreter Protection Hardened Medium Armor Plating Weapon Enhanced Autogun Energy Gun Particle Gun Energy Cannon Plasma Cannon Ballistic Gun Enhanced Autogun Ballistic Cannon Light Cannon Launcher Missile Launcher Special Weapon Remote Datajack Special Melee Weapon Datajack Build | -11 -10 -10 -10 -9 -8 -7 -7 -7 -7 ------- Run | Scr Mat Min Exi Min Mat Fac Low Low Dat Slots Evolved 6 | . . . . . 4 2 . . . Power . | . . . . . . . . . . Propulsion 1 | . . . . . 1 . . . . Utility 4 | . . . . . 3 1 . . . Weapon 1 | . . . . . . 1 . . . Parts Attached 122 | 6 11 1 3 1 25 30 11 10 24 Power 10 | 1 2 . . . 2 3 . 1 1 Engine 10 | 1 2 . . . 2 3 . 1 1 Core . | . . . . . . . . . . Reactor . | . . . . . . . . . . Propulsion 22 | 2 3 1 . . 4 6 . 2 4 Treads . | . . . . . . . . . . Leg 22 | 2 3 1 . . 4 6 . 2 4 Wheel . | . . . . . . . . . . Hover . | . . . . . . . . . . Flight . | . . . . . . . . . . Utility 46 | 1 3 . 1 1 13 8 3 3 13 Device 33 | 1 . . . 1 9 6 3 2 11 Storage 6 | . 3 . 1 . 1 . . . 1 Processor 5 | . . . . . 3 2 . . . Hackware . | . . . . . . . . . . Protection 2 | . . . . . . . . 1 1 Artifact . | . . . . . . . . . . Weapon 44 | 2 3 . 2 . 6 13 8 4 6 Energy Gun 5 | . 1 . . . 2 2 . . . Energy Cannon 9 | . . . . . . 3 4 . 2 Ballistic Gun 19 | 2 1 . . . 3 6 . 4 3 Ballistic Cannon 5 | . 1 . 1 . 1 2 . . . Launcher 3 | . . . . . . . 3 . . Special Weapon 2 | . . . . . . . 1 . 1 Impact Weapon . | . . . . . . . . . . Slashing Weapon . | . . . . . . . . . . Piercing Weapon . | . . . . . . . . . . Special Melee Weapon 1 | . . . 1 . . . . . . Unidentified Prototypes 3 | . . . . . . 3 . . . Parts Lost 27 | . 3 . . . . 10 . . 14 Power 3 | . . . . . . 2 . . 1 Propulsion 9 | . 1 . . . . 4 . . 4 Utility 6 | . . . . . . 3 . . 3 Weapon 9 | . 2 . . . . 1 . . 6 Highest Loss Streak 5 | . 2 . . . . 4 . . 5 Average Slot Usage (%) 99 | . 99 100 100 100 99 99 99 99 97 Engine 8 | . 14 14 14 14 9 7 7 7 6 Leg 24 | . 28 28 28 28 27 23 23 23 22 Device 19 | . 14 14 14 14 19 22 23 22 16 Storage 8 | . 13 14 14 14 9 7 7 7 8 Processor 11 | . . . . . 16 15 15 15 12 Protection 1 | . . . . . . . . . 5 Energy Gun 1 | . 9 . . . 6 2 . . . Energy Cannon 2 | . . . . . . 2 1 . 8 Ballistic Gun 16 | . 17 14 14 14 9 15 19 22 13 Ballistic Cannon 1 | . . 14 6 14 2 1 . . . Naked Turns . | . . . . . . . . . . Heaviest Build 50 | 6 18 18 26 26 33 42 41 44 50 Greatest Support 71 | 20 20 20 20 20 47 47 45 45 71 Greatest Overweight (x) 2 | . . . 1 1 1 1 . . 2 Average Overweight (x) . | . . . . 1 . . . . . Largest Inventory Capacity 10 | 4 8 8 10 10 10 10 10 10 10 Average Capacity 9 | 4 7 8 8 10 10 10 10 10 10 Most Carried 10 | 4 8 8 10 10 10 10 10 10 10 Average Carried 9 | 2 6 7 8 10 9 9 9 9 8 Final Capacity 10 | 4 8 8 10 10 10 10 10 10 10 Final Carried 10 | 3 8 8 10 10 10 9 10 10 7 Class Distribution -------------------- 50% | Scavenger-Skirmisher 30% | Scavenger-Mutant 15% | Mutant Dominant Class ---------------- Scavenger-Mutant | -10/Materials Mutant | -10/Mines Mutant | -10/Exiles Mutant | -9/Mines Scavenger-Skirmisher | -8/Materials Scavenger-Skirmisher | -7/Factory Scavenger-Skirmisher | -7/Lower Caves Scavenger-Skirmisher | -7/Lower Caves Scavenger-Mutant | -7/Data Miner Resources | -11 -10 -10 -10 -9 -8 -7 -7 -7 -7 ----------- Run | Scr Mat Min Exi Min Mat Fac Low Low Dat Matter Collected 3099 | 308 211 25 30 15 599 1163 202 277 269 Remotely . | . . . . . . . . . . Salvage Created 3963 | 235 582 77 . 15 890 1462 79 354 269 Parts 237 | 16 33 4 . 2 63 85 6 19 9 Haulers Intercepted 5 | . 2 . . . 2 1 . . . Recyclers Shooed 5 | 1 1 . . . 3 . . . . Parts Field Recycled . | . . . . . . . . . . Retrieved Matter . | . . . . . . . . . . Parts Self-Destructed 18 | . . . . . . . 6 12 . Prevented . | . . . . . . . . . . Kills | -11 -10 -10 -10 -9 -8 -7 -7 -7 -7 ------- Run | Scr Mat Min Exi Min Mat Fac Low Low Dat Combat Hostiles Destroyed 54 | . 8 2 . . 11 18 4 8 3 Guns 42 | . 7 . . . 10 16 1 6 2 Cannons 9 | . 1 2 . . 1 2 . 2 1 AOE 3 | . . . . . . . 3 . . Classes Destroyed 14 | 2 5 . . . 2 4 1 . . Worker 9 | . 1 . . . 3 5 . . . Builder 7 | . 2 . . . 2 3 . . . Tunneler 10 | 7 . . . 1 1 1 . . . Hauler 5 | . 2 . . . 2 1 . . . Recycler 5 | 1 1 . . . . 3 . . . Mechanic 1 | . . . . . . 1 . . . Operator 1 | . . . . . . 1 . . . Watcher 7 | . 3 . . . 3 1 . . . Swarmer 7 | . . . . . . . 3 4 . Grunt 29 | . 8 2 . . 4 15 . . . Duelist 1 | . . . . . . 1 . . . Sentry 6 | . . . . . 5 . . 1 . Hunter 3 | . . . . . 2 . 1 . . Programmer 2 | . . . . . . 2 . . . Enhanced Grunt 3 | . . . . . . . . . 3 Thug 3 | . . . . . . . . 3 . Best Kill Streak 6 | 3 4 2 . 1 4 6 3 4 1 Combat Bots Only 5 | . 2 2 . . 2 5 3 4 1 Max Kills in Single Turn 3 | 1 1 1 . 1 2 1 2 3 1 Gunslinging . | . . . . . . . . . . Exploded 2 | . . . . . . . 2 . . Melee . | . . . . . . . . . . Uniques/NPCs Destroyed . | . . . . . . . . . . Combat | -11 -10 -10 -10 -9 -8 -7 -7 -7 -7 -------- Run | Scr Mat Min Exi Min Mat Fac Low Low Dat Damage Taken 4991 | . 528 15 . . 816 1233 133 441 1825 Core 1002 | . 129 . . . 138 173 38 42 482 Absorbed by Shields 81 | . . . . . . 81 . . . Core Remaining (%) 74 | 100 . . . 48 74 . . . . Volleys Fired 415 | 24 71 3 . 7 76 140 18 19 57 Largest 3 | 2 2 2 . 1 2 3 3 3 3 Hottest 171 | 40 85 55 . 35 93 141 125 125 171 Shots Fired 896 | 48 133 6 . 7 147 375 26 57 97 Gun 749 | 48 131 3 . . 133 330 8 52 44 Cannon 139 | . 2 3 . 7 14 45 11 5 52 Launcher 5 | . . . . . . . 5 . . Special 3 | . . . . . . . 2 . 1 Kinetic 650 | 48 105 6 . 7 90 290 8 52 44 Thermal 184 | . 28 . . . 57 48 4 5 42 Explosive 5 | . . . . . . . 5 . . Electromagnetic 54 | . . . . . . 37 7 . 10 Robot Hit Streak 16 | 6 16 5 . 7 10 14 3 11 12 Robot Miss Streak 9 | 3 5 2 . 1 6 9 7 7 5 Penetration Max 1 | . . . . . 1 1 . . . Secondary Targets 5 | . . . . . 1 2 . 2 . Max Gunslinging Chain 1 | . . . . . 1 1 . 1 . Shots Hit Robots 484 | 27 77 5 5 2 84 187 8 34 55 Core Hits 216 | 16 34 4 . 1 37 65 7 14 38 Critical Hits 9 | . 1 . . . 4 2 1 1 . Critical Kills 4 | . . . . . 3 . . 1 . Critical Parts Destroyed 5 | . 1 . . . 1 2 1 . . Melee Attacks 5 | . . . 5 . . . . . . Impact . | . . . . . . . . . . Slashing . | . . . . . . . . . . Piercing . | . . . . . . . . . . Sneak Attacks 5 | . . . 5 . . . . . . Combat Hostiles . | . . . . . . . . . . Follow-up Attacks . | . . . . . . . . . . Damage Inflicted 8202 | 237 801 76 . 36 1647 3340 293 651 1121 Guns 6573 | 237 762 21 . . 1519 2737 24 576 697 Cannons 1329 | . 39 55 . 36 109 603 50 75 362 Explosions 275 | . . . . . . . 219 . 56 Melee . | . . . . . . . . . . Ramming 25 | . . . . . 19 . . . 6 Kinetic 5189 | 237 464 76 . 36 1008 2071 24 576 697 Thermal 2163 | . 337 . . . 620 779 50 75 302 Explosive 219 | . . . . . . . 219 . . Electromagnetic 606 | . . . . . . 490 . . 116 Impact . | . . . . . . . . . . Slashing . | . . . . . . . . . . Piercing . | . . . . . . . . . . Highest Corruption 1 | . . . . . . 1 1 . . Average Corruption 1 | . . . . . . 1 1 . . Corruption Purged 1 | . . . . . . . 1 . . Effects 7 | . . . . . . 1 6 . . Message Errors 3 | . . . . . . . 3 . . Energy Discharges 2 | . . . . . . . 2 . . Data Loss (minor) 1 | . . . . . . . 1 . . Targeting Errors 1 | . . . . . . 1 . . . Overload Shots . | . . . . . . . . . . Overflow Damage 9 | . . . . . . 6 3 . . Projectiles 6 | . . . . . . 6 . . . Explosions 3 | . . . . . . . 3 . . Melee . | . . . . . . . . . . Knockbacks 3 | . 1 1 . . 1 . . . . Impact . | . . . . . . . . . . Kinetic 3 | . 1 1 . . 1 . . . . Secondary . | . . . . . . . . . . Self-Inflicted Damage 159 | . . . . . 1 77 . . 81 Shots 2 | . . . . . . 1 . . 1 Rammed 2 | . . . . . 1 . . . 1 Targets Rammed 5 | . . . . . 4 . . . 1 Kicked 3 | . . . . . 3 . . . . Crushed . | . . . . . . . . . . Highest Temperature 229 | . 229 17 . . 177 216 127 90 48 Average Temperature 58 | . 58 10 . . 47 74 64 23 16 Received Heat Transfer 1188 | . 183 9 . . 270 411 . 93 222 Siege Activations . | . . . . . . . . . . Robots Corrupted 1 | . . . . . . 1 . . . Combat Hostiles . | . . . . . . . . . . Parts Fried 3 | . . . . . . 2 . . 1 Impact Corruptions . | . . . . . . . . . . Robots Melted . | . . . . . . . . . . Combat Hostiles . | . . . . . . . . . . Parts Melted 8 | . 1 . . . 3 2 . 1 1 Heat Transferred 4302 | . 814 . . . 1369 1184 74 111 750 Parts Sabotaged . | . . . . . . . . . . Parts Stolen . | . . . . . . . . . . Parts Stripped . | . . . . . . . . . . Power Chain Reactions 1 | . . . . . . . . . 1 Missiles Intercepted . | . . . . . . . . . . Alert | -11 -10 -10 -10 -9 -8 -7 -7 -7 -7 ------- Run | Scr Mat Min Exi Min Mat Fac Low Low Dat Peak Influence 876 | 40 243 87 . 50 360 876 . . . Initial 163 | . 26 33 . . 19 163 . . . Average 296 | 18 77 84 . 32 136 650 . . . Maximum Alert Level 3 | . 1 . . . 1 3 . . . Low Security (%) 58 | 100 93 100 . 100 75 8 . . . Level 1 7 | . 6 . . . 24 1 . . . Level 2 14 | . . . . . . 38 . . . Level 3 19 | . . . . . . 52 . . . Level 4 . | . . . . . . . . . . Level 5 . | . . . . . . . . . . High Security . | . . . . . . . . . . Max Security . | . . . . . . . . . . Squads Dispatched 14 | . 2 . . . 4 8 . . . Investigation 4 | . 1 . . . 3 . . . . Extermination 3 | . . . . . . 3 . . . Reinforcement 5 | . 1 . . . 1 3 . . . Assault 2 | . . . . . . 2 . . . Garrison . | . . . . . . . . . . Intercept . | . . . . . . . . . . Construction Impeded 2 | . . . . . 1 1 . . . Haulers Reinforced 1 | . . . . . . 1 . . . Stealth | -11 -10 -10 -10 -9 -8 -7 -7 -7 -7 --------- Run | Scr Mat Min Exi Min Mat Fac Low Low Dat Distress Signals 7 | . . . . . 3 4 . . . Communications Jammed . | . . . . . . . . . . Distress Signals . | . . . . . . . . . . Times Spotted 109 | . 19 1 . . 25 46 3 11 4 Peak Tracking Total 9 | . 3 1 . . 5 9 2 4 1 Tactical Retreats 8 | . 1 . . . . 6 . 1 . Traps | -11 -10 -10 -10 -9 -8 -7 -7 -7 -7 ------- Run | Scr Mat Min Exi Min Mat Fac Low Low Dat Traps Triggered 1 | . . . . . 1 . . . . Indirectly . | . . . . . . . . . . Trap Hack Attempts . | . . . . . . . . . . Triggered . | . . . . . . . . . . Disarmed 3 | . 3 . . . . . . . . Reprogrammed 1 | . . . . . 1 . . . . Reused . | . . . . . . . . . . Traps Extracted . | . . . . . . . . . . Installed . | . . . . . . . . . . Triggered 1 | . . . . . . 1 . . . Exploded 2 | . . . . . . 1 . 1 . Machines | -11 -10 -10 -10 -9 -8 -7 -7 -7 -7 ---------- Run | Scr Mat Min Exi Min Mat Fac Low Low Dat Machines Disabled 36 | . 2 . . 3 5 26 . . . Max in Single Turn 20 | . 1 . . 1 2 20 . . . Garrison Access 1 | . . . . . 1 . . . . Machines Sabotaged . | . . . . . . . . . . Garrisons Compromised . | . . . . . . . . . . Overloaded Fab Kills . | . . . . . . . . . . Fab Network Shutdowns . | . . . . . . . . . . Hacking | -11 -10 -10 -10 -9 -8 -7 -7 -7 -7 --------- Run | Scr Mat Min Exi Min Mat Fac Low Low Dat Machines Accessed 27 | . 6 1 . . 10 7 . . 3 Terminals 16 | . 4 1 . . 6 5 . . . Fabricators 1 | . . . . . . 1 . . . Repair Stations 1 | . 1 . . . . . . . . Recycling Units 3 | . 1 . . . 2 . . . . Scanalyzers 2 | . . . . . 1 1 . . . Garrison Access 1 | . . . . . 1 . . . . Total Hacks 110 | . 26 5 . . 36 25 . . 18 Successful 76 | . 19 3 . . 24 12 . . 18 Failed 34 | . 7 2 . . 12 13 . . . Catastrophic 6 | . . . . . 2 4 . . . Database Lockouts . | . . . . . . . . . . Manual 64 | . 19 3 . . 27 15 . . . Terminals 67 | . 20 5 . . 23 19 . . . Fabricators 4 | . . . . . . 4 . . . Repair Stations 4 | . 4 . . . . . . . . Recycling Units 10 | . 2 . . . 8 . . . . Scanalyzers 6 | . . . . . 4 2 . . . Garrison Access 1 | . . . . . 1 . . . . Terminal Hacks 35 | . 5 2 . . 4 6 . . 18 Record 6 | . . . . . . . . . 6 Part Schematic 6 | . . . . . . 3 . . 3 Robot Schematic 6 | . . . . . . . . . 6 Robot Analysis 1 | . 1 . . . . . . . . Prototype ID Bank 3 | . . . . . . . . . 3 Branch Access Points 2 | . . . . . 1 1 . . . Emergency Access Points 2 | . 2 . . . . . . . . Unreport Threat 1 | . 1 . . . . . . . . Locate Traps 4 | . . . . . 2 2 . . . Disarm Traps 1 | . 1 . . . . . . . . Reprogram Traps 1 | . . . . . 1 . . . . Patrol Status 1 | . . 1 . . . . . . . Zone Layout 1 | . . 1 . . . . . . . Fabricator Hacks . | . . . . . . . . . . Repair Station Hacks 2 | . 2 . . . . . . . . Scan Component 1 | . 1 . . . . . . . . Repair 1 | . 1 . . . . . . . . Recycling Unit Hacks . | . . . . . . . . . . Scanalyzer 5 | . . . . . 4 1 . . . Insert Component 3 | . . . . . 2 1 . . . Analyze 2 | . . . . . 2 . . . . Garrison Access Hacks 1 | . . . . . 1 . . . . Seal Access 1 | . . . . . 1 . . . . Unauthorized Hacks 33 | . 12 1 . . 15 5 . . . Terminals 26 | . 10 1 . . 10 5 . . . Track 5 | . 2 1 . . 2 . . . . Assimilate 2 | . 2 . . . . . . . . Botnet 13 | . 4 . . . 5 4 . . . Detonate 1 | . . . . . 1 . . . . Disrupt 3 | . 1 . . . 1 1 . . . Operators 2 | . 1 . . . 1 . . . . Fabricators . | . . . . . . . . . . Repair Stations 1 | . 1 . . . . . . . . Mechanics 1 | . 1 . . . . . . . . Recycling Units 6 | . 1 . . . 5 . . . . Monitor 1 | . . . . . 1 . . . . Reject 1 | . . . . . 1 . . . . Recyclers 1 | . . . . . 1 . . . . Mask 1 | . . . . . 1 . . . . Tunnel 2 | . 1 . . . 1 . . . . Scanalyzers . | . . . . . . . . . . Garrison Access . | . . . . . . . . . . Data Cores Recovered . | . . . . . . . . . . Used . | . . . . . . . . . . Hacking Detections 21 | . 5 1 . . 8 7 . . . Full Trace Events 1 | . . . . . 1 . . . . Feedback Events . | . . . . . . . . . . Feedback Blocked . | . . . . . . . . . . Robot Schematics Acquired 6 | . . . . . . . . . 6 Robots Built . | . . . . . . . . . . Matter . | . . . . . . . . . . Time . | . . . . . . . . . . Total Robot Build Rating . | . . . . . . . . . . Part Schematics Acquired 8 | . . . . . 2 3 . . 3 Parts Built . | . . . . . . . . . . Matter . | . . . . . . . . . . Time . | . . . . . . . . . . Total Part Build Rating . | . . . . . . . . . . Parts Repaired 1 | . 1 . . . . . . . . Time 26 | . 26 . . . . . . . . Parts Recycled . | . . . . . . . . . . Recycled Matter . | . . . . . . . . . . Retrieved Matter . | . . . . . . . . . . Retrieved Components . | . . . . . . . . . . Parts Scanalyzed 3 | . . . . . 2 1 . . . Part Schematics Acquired 2 | . . . . . 2 . . . . Parts Damaged . | . . . . . . . . . . Bothacking | -11 -10 -10 -10 -9 -8 -7 -7 -7 -7 ------------ Run | Scr Mat Min Exi Min Mat Fac Low Low Dat Used RIF Installer . | . . . . . . . . . . Robots Hacked 5 | . . . 4 . . . . . 1 Non-combat 3 | . . . 3 . . . . . . Combat 2 | . . . 1 . . . . . 1 Robot Hacks Applied 5 | . . . 4 . . . . . 1 parse_system 5 | . . . 4 . . . . . 1 Relay Couplers Released . | . . . . . . . . . . Robots Rewired . | . . . . . . . . . . Allies Hacked . | . . . . . . . . . . Hacks Repelled . | . . . . . . . . . . Allies | -11 -10 -10 -10 -9 -8 -7 -7 -7 -7 -------- Run | Scr Mat Min Exi Min Mat Fac Low Low Dat Total Allies 1 | . 1 . . . . . . . . Largest Group 1 | . 1 1 1 1 1 . . . . Highest-Rated Group 10 | . 10 10 10 10 10 . . . . Highest-Rated Ally 10 | . 10 10 10 10 10 . . . . Total Orders 4 | . 2 2 . . . . . . . STAY 2 | . 1 1 . . . . . . . FOLLOW 2 | . 1 1 . . . . . . . Ally Attacks . | . . . . . . . . . . Total Damage . | . . . . . . . . . . Kills . | . . . . . . . . . . Allies Corrupted . | . . . . . . . . . . Allies Melted . | . . . . . . . . . . Intel | -11 -10 -10 -10 -9 -8 -7 -7 -7 -7 ------- Run | Scr Mat Min Exi Min Mat Fac Low Low Dat Robot Analysis Total 116 | . 1 . . . . . . . 115 Derelict Logs Recovered 5 | . . . . 1 . . 3 1 . Drone Launches . | . . . . . . . . . . Drone Recoveries . | . . . . . . . . . . Exploration | -11 -10 -10 -10 -9 -8 -7 -7 -7 -7 ------------- Run | Scr Mat Min Exi Min Mat Fac Low Low Dat Turns Passed 10815 | 252 963 99 560 373 1118 1631 1741 1965 2113 Spaces Moved 5633 | 151 569 70 417 239 640 970 1300 1002 275 Core 7 | 7 . . . . . . . . . Treads . | . . . . . . . . . . Legs 5626 | 144 569 70 417 239 640 970 1300 1002 275 Wheels . | . . . . . . . . . . Hover . | . . . . . . . . . . Flight . | . . . . . . . . . . Fastest Speed 50 | 50 120 120 120 150 120 120 120 120 120 Average Speed 122 | 116 120 120 129 150 122 121 120 120 130 Slowest Speed 180 | 120 120 120 150 150 150 150 120 120 180 Overloaded Moves . | . . . . . . . . . . Propulsion Burnouts . | . . . . . . . . . . Robots Hopped . | . . . . . . . . . . Cave-ins Triggered . | . . . . . . . . . . Exploration Rate (%) 57 | 5 86 21 70 56 48 23 89 91 86 Regions Visited 9 Branch Regions 6 Pre-discovered Areas 28 | . 1 . . . 1 . . . 26 Known Exits Taken 4 | . . . . . 1 1 1 1 . Unknown Exits Taken 5 | 1 1 1 1 1 . . . . . Scrap Searched 6 | . . . . . . . 4 2 . Spaces Dug 14 | . . . . . . 2 12 . . Terrain Destroyed 194 | . . . . 10 1 109 51 1 22 Melee . | . . . . . . . . . . Projectile 8 | . . . . . 1 3 2 1 1 AOE 186 | . . . . 10 . 106 49 . 21 Terrain Rammed . | . . . . . . . . . . Walls Destroyed . | . . . . . . . . . . Machines Disabled . | . . . . . . . . . . Actions | -11 -10 -10 -10 -9 -8 -7 -7 -7 -7 --------- Run | Scr Mat Min Exi Min Mat Fac Low Low Dat Total 8892 | 188 739 80 430 246 832 1232 1459 1742 1944 Wait 2575 | . 67 4 . . 53 58 119 698 1576 Move 5625 | 150 568 69 416 238 640 969 1299 1001 275 Hop . | . . . . . . . . . . Pick Up 76 | 8 14 1 4 . 14 19 4 3 9 Fast Attach 24 | 1 1 . . . 6 7 5 4 . Attach 41 | 5 5 . 1 . 5 12 . . 13 Detach 1 | . . . . . . . . . 1 Swap 57 | . 5 1 2 1 14 11 6 6 11 Drop 69 | . 8 2 2 . 21 16 8 11 1 Fire 415 | 24 71 3 . 7 76 140 18 19 57 Melee 5 | . . . 5 . . . . . . Ram . | . . . . . . . . . . Kick 4 | . . . . . 3 . . . 1 Crush . | . . . . . . . . . . Escape Stasis . | . . . . . . . . . . Rewire . | . . . . . . . . . . Trap . | . . . . . . . . . . Miscellaneous . | . . . . . . . . . . Route ------- -11/Scrapyard -10/Materials (discovered 3 exits: [*Mat x2] / *Min) -10/Mines -10/Exiles -9/Mines -8/Materials -7/Factory (discovered 3 exits: *Fac / *Low x2) -7/Lower Caves -7/Lower Caves (discovered 2 exits: *Fac / *Dat) -7/Data Miner (discovered 1 exit: [*Pro]) History --------- Turn | Location | Event 6 | -11/Scrapyard | Discovered new exit (range 16) 253 | -11/Scrapyard | Entered Materials 304 | -10/Materials | Build established: Mutant 347 | -10/Materials | Discovered new exit (range 16) 677 | -10/Materials | Discovered new exit (range 9) 786 | -10/Materials | Repaired Ion Engine 843 | -10/Materials | Build established: Scavenger-Mutant 878 | -10/Materials | Discovered new exit (range 16) 1148 | -10/Materials | Core integrity fell below 50% 1216 | -10/Materials | Entered Mines 1216 | -10/Mines | Accompanied by 1 ally 1230 | -10/Mines | Met a Derelict bent on vengeance 1306 | -10/Mines | Deemed a non-threat by the Exiles lab entrance 1306 | -10/Mines | Discovered new exit (range 5) 1315 | -10/Mines | Entered Exiles 1315 | -10/Exiles | Accompanied by 1 ally 1345 | -10/Exiles | Met 8R-AWN 1367 | -10/Exiles | Met EX-HEX 1430 | -10/Exiles | Met EX-DEC 1452 | -10/Exiles | Build established: Mutant 1475 | -10/Exiles | Visited The Gauntlet 1581 | -10/Exiles | Met EX-BIN 1857 | -10/Exiles | Discovered new exit (range 14) 1875 | -10/Exiles | Entered Mines 1875 | -9/Mines | Accompanied by 1 ally 2024 | -9/Mines | A weapon hastily lodged in a ceiling crevice suddenly fell to the ground 2084 | -9/Mines | Learned Materials security intel 2095 | -9/Mines | Discovered new exit (range 15) 2248 | -9/Mines | Entered Materials 2248 | -8/Materials | Accompanied by 1 ally 2248 | -8/Materials | Evolved 4 slots: Propulsion x1, Utility x3 2666 | -8/Materials | Build established: Scavenger-Skirmisher 3166 | -8/Materials | Discovered new exit (range 16) 3361 | -8/Materials | Identified exit to Factory 3366 | -8/Materials | Entered Factory 3366 | -7/Factory | Evolved 2 slots: Utility x1, Weapon x1 3783 | -7/Factory | Identified exit to Lower Caves 4076 | -7/Factory | Lost 4 parts (1p1n1u1w) 4166 | -7/Factory | First assault squad dispatched 4455 | -7/Factory | Lost 3 parts (2n1u) 4652 | -7/Factory | Discovered new exit (range 16) 4997 | -7/Factory | Entered Lower Caves 5017 | -7/Lower Caves | Learned location of 1 exit from Factory 5098 | -7/Lower Caves | Learned Factory stockpile data 5219 | -7/Lower Caves | Learned 4 Factory zone layouts 6212 | -7/Lower Caves | Build established: Scavenger-Mutant 6385 | -7/Lower Caves | Discovered new exit (range 10) 6736 | -7/Lower Caves | Identified exit to Lower Caves 6738 | -7/Lower Caves | Entered another Lower Caves area 6738 | -7/Lower Caves | Discovered new exit (range 10) 6814 | -7/Lower Caves | Identified exit to Factory 6861 | -7/Lower Caves | Learned Factory trap positions 7069 | -7/Lower Caves | Build established: Scavenger-Skirmisher 8294 | -7/Lower Caves | Attracted the attention of an 0b10 checkpoint 8444 | -7/Lower Caves | Discovered new exit (range 11) 8465 | -7/Lower Caves | Encountered a Warlord checkpoint 8501 | -7/Lower Caves | Ambushed by wild Derelicts 8521 | -7/Lower Caves | Identified exit to Data Miner 8703 | -7/Lower Caves | Entered Data Miner 8703 | -7/Data Miner | Discovered new exit (range 6) 8726 | -7/Data Miner | Met Data Miner 8772 | -7/Data Miner | Learned location of Section 7 (-3) 8772 | -7/Data Miner | Acquired the access code to Warlord's prototype stash 8784 | -7/Data Miner | Received God Mode back door access code from Data Miner 8800 | -7/Data Miner | Interfaced with the Data Conduit 9054 | -7/Data Miner | Build established: Scavenger-Mutant 10219 | -7/Data Miner | Lost 4 parts (1n2u1w) 10498 | -7/Data Miner | Core integrity fell below 50% 10730 | -7/Data Miner | Core integrity fell below 20% 10749 | -7/Data Miner | Lost 5 parts (1p1u3w) 10816 | -7/Data Miner | Destroyed by Enhanced Grunt with Neutron Cannon Last Messages --------------- 10520_ Acquired Imp. Energy Well. 10523_ Acquired 10 matter. 10525_ Acquired 3 matter. 10527_ Acquired Enh. Flexi-carbon Leg. 10530_ Acquired Adv. Heat Sink. 10535_ Acquired Adv. Particle Charger. 10709_ Adv. Particle Charger destroyed. 10710_ Slug penetrates Enhanced Grunt. 10711_ EM Pulse Cannon destroyed. 10714_ Slug penetrates Enhanced Grunt. 10718_ Lgt. Angular Momentum Engine destroyed. 10718_ Plasma Cannon destroyed. 10718_ Gauss Rifle destroyed. 10731_ Enhanced Grunt destroyed. 10738_ Acquired Lyr. Medium Armor Plating. 10741_ Acquired 84 matter. 10743_ Acquired Adv. Heat Sink. 10776_ Barrage Gun destroyed. 10796_ Flak Gun destroyed. 10798_ Carbon-fiber Leg destroyed. Map ----- +----------------------------------------------------+ | | | | | | | | | ??????????????????????????????????????????? | | ??????????????????????????????????????????? | | ??????????????????????????????????????????? | | ??????????????????????????????????????????? | | ?????????????????????????????????????####?? | | ???????##############??????????????### #?? | | ?????"""""""""""""""######????????## #?? | | ????""""""""" """"""""# ######## < ##?? | | ????""""""""" ### | | ????"""""" | | ???""""""" | | ???"""""" | | ???""""""" | | ????"""""" """"""""""""""""### | | ????""""""" | """"###############?? | | ????""""""" """""###???????????????? | | ?????"""""""" "#####?????????????????? | | ?????#######"## "#?????????????????????? | | ???????????#"### "#?????????????????????? | | ???????????#"### "#?????????????????????? | | ???????????#"## "#?????????????????????? | | ???????????#"## @"#?????????????????????? | | ?????????????# "#?????????????????????? | | ?????????????### "#?????????????????????? | | ???????????????# "##????????????????????? | | ??????????????## ""#????????????????????? | | ?????????????## ""#????????????????????? | | ??????????##"#"X g""#????????????????????? | | ??????????""""" "#####????????????????? | | ??????????""""" X "#????????????????? | | ??????????##"#"X "## ##????????????????? | | ???????????#"## X""" #?????????????????? | | ??????????##"### "## #?????????????????? | | ?????????##""# #######" #?????????????????? | | ?????????# " " #????#" #?????????????????? | | ?????????# """######" ##????????????????? | | ?????????##" "#????????????????? | | ??????????#"""""# ""######????????????????? | | ??????????# #""#??????????????????????? | | ??????????#### ##""#??????????????????????? | | ?????????????####""#??????????????????????? | | ????????????????#""#??????????????????????? | | ????????????????####??????????????????????? | | ??????????????????????????????????????????? | | ??????????????????????????????????????????? | | ??????????????????????????????????????????? | +----------------------------------------------------+ Best States ------------- Heat Dissipation 67 Energy Generation 18 Energy Capacity 750 Matter Stores 300 Matter Capacity 300 Sight Range 16 Robot Scan Range 20 Terrain Scan Range 16 Terrain Scan Density 210 Armor Coverage 225 Evasion (%) 40 Item Schematics ----------------- Imp. Shield Generator | -8/Materials | Scanalyzed Rnf. Deuterium Engine | -8/Materials | Scanalyzed Adv. Sensor Array | -7/Factory | Hacked Lrn. Terrain Scanner | -7/Factory | Hacked Lrn. Sensor Array | -7/Factory | Hacked Combat Drone Bay | -7/Data Miner | Free Lgt. Regenerative Plating | -7/Data Miner | Free Kinetic Spear | -7/Data Miner | Free Robot Schematics ------------------ S-27 Virus | -7/Data Miner | Free G-50 Soldier | -7/Data Miner | Free L-41 Fighter | -7/Data Miner | Free P-70 Sage | -7/Data Miner | Free I-36 Angel | -7/Data Miner | Free I-47 Archangel | -7/Data Miner | Free Fabricated ------------ Nothing Alien Tech Used ----------------- None Achievements -------------- Dramatic Entrance Challenges ------------ None Game ------ Seed ThrusterCloakAirjet Manual? 0 Play Time 01:55:51 Cumulative 126.6 hours Start 2020.11.26 @ 13:46:38 End 2020.11.26 @ 18:32:01 Sessions 3 Manual Loads 0 Difficulty Rogue Special Mode None Game No. 38 Rogue 15 Adventurer 23 Explorer 0 Win Type - Total 5 Types 5/0/0/0/0/0/0/0/0 Lore% 79 Gallery% 80 Achievement% 62 Wizard Run 0 Options --------- ASCII 0 Keyboard 0 Movement Mouse Keybinds 0 Fullscreen 1 Font 18/SmallcapsGlow Map View 76x50 Tactical HUD 1 Map Filters NONE Filters NONE Steam 1 RUN: c5d292ed-3795-488e-8b56-88a3ba616068